[Event "*** Titled Tuesday Blitz"]
[Site "Chess.com"]
[Date "2020.11.10"]
[Round "9"]
[White "Mr_Heisenberg13"]
[Black "Luklei18"]
[Result "1-0"]
[WhiteElo "2490"]
[BlackElo "2331"]
[TimeControl "180+1"]
[EndTime "11:52:09 PST"]
[Termination "Mr_Heisenberg13 won on time"]

1. e4 {[%clk 0:03:00.9]} 1... e6 {[%clk 0:03:00.1]} 2. d4 {[%clk 0:03:00.5]}
2... d5 {[%clk 0:03:00.6]} 3. Nd2 {[%clk 0:03:00.8]} 3... a6 {[%clk 0:02:59.2]}
4. Ngf3 {[%clk 0:02:57.1]} 4... Nf6 {[%clk 0:02:59.2]} 5. e5 {[%clk 0:02:56.8]}
5... Nfd7 {[%clk 0:02:59.9]} 6. Bd3 {[%clk 0:02:56.9]} 6... c5 {[%clk
0:03:00.6]} 7. c3 {[%clk 0:02:56.3]} 7... Nc6 {[%clk 0:03:01.3]} 8. O-O {[%clk
0:02:55.7]} 8... g5 {[%clk 0:03:01.7]} 9. Nb3 {[%clk 0:02:53.8]} 9... h6 {[%clk
0:02:57]} 10. Nxc5 {[%clk 0:02:51.2]} 10... Nxc5 {[%clk 0:02:54.6]} 11. dxc5
{[%clk 0:02:52.1]} 11... Bxc5 {[%clk 0:02:55]} 12. b4 {[%clk 0:02:51.7]} 12...
Be7 {[%clk 0:02:53.1]} 13. Qe2 {[%clk 0:02:34.3]} 13... Bd7 {[%clk 0:02:50]} 14.
a3 {[%clk 0:02:31.1]} 14... Qc7 {[%clk 0:02:43.3]} 15. Bb2 {[%clk 0:02:30.7]}
15... O-O-O {[%clk 0:02:24.1]} 16. c4 {[%clk 0:02:29.7]} 16... dxc4 {[%clk
0:02:11.6]} 17. Bxc4 {[%clk 0:02:30.6]} 17... Kb8 {[%clk 0:02:02.2]} 18. Rac1
{[%clk 0:02:28.8]} 18... Rc8 {[%clk 0:01:40.2]} 19. Bb3 {[%clk 0:02:26.9]} 19...
Qd8 {[%clk 0:01:34.2]} 20. Rfd1 {[%clk 0:02:23.9]} 20... Qe8 {[%clk 0:01:34.3]}
21. Qe3 {[%clk 0:02:20.7]} 21... Na7 {[%clk 0:01:01.5]} 22. Bd4 {[%clk
0:02:07.4]} 22... Nb5 {[%clk 0:01:01]} 23. Bc5 {[%clk 0:02:02.7]} 23... Nxa3
{[%clk 0:00:49.4]} 24. Nd2 {[%clk 0:01:46.9]} 24... Bxc5 {[%clk 0:00:46.6]} 25.
Rxc5 {[%clk 0:01:47.8]} 25... Rxc5 {[%clk 0:00:46.4]} 26. bxc5 {[%clk
0:01:48.7]} 26... Nb5 {[%clk 0:00:42.8]} 27. Nc4 {[%clk 0:01:46.5]} 27... Bc6
{[%clk 0:00:43.3]} 28. Nd6 {[%clk 0:01:45.6]} 28... Nxd6 {[%clk 0:00:42.2]} 29.
cxd6 {[%clk 0:01:46.5]} 29... Qd7 {[%clk 0:00:37.3]} 30. Bc4 {[%clk 0:01:43.8]}
30... Bb5 {[%clk 0:00:30.1]} 31. Bxb5 {[%clk 0:01:33.5]} 31... Qxb5 {[%clk
0:00:31]} 32. Qf3 {[%clk 0:01:32.1]} 32... Qd7 {[%clk 0:00:28.3]} 33. Qf6 {[%clk
0:01:32]} 33... Rg8 {[%clk 0:00:17.6]} 34. Qxh6 {[%clk 0:01:31]} 34... b5 {[%clk
0:00:16.1]} 35. Qh3 {[%clk 0:01:27.9]} 35... a5 {[%clk 0:00:15.7]} 36. Qd3
{[%clk 0:01:23.3]} 36... Kb7 {[%clk 0:00:14.3]} 37. Ra1 {[%clk 0:01:18.6]} 37...
Ka6 {[%clk 0:00:13.3]} 38. Qc3 {[%clk 0:01:16.1]} 38... Qd8 {[%clk 0:00:12.2]}
39. Qc6+ {[%clk 0:01:12.8]} 39... Qb6 {[%clk 0:00:11.5]} 40. Qd7 {[%clk
0:01:12.7]} 40... Rd8 {[%clk 0:00:01.1]} 41. Qxf7 {[%clk 0:01:10.6]} 41... b4
{[%clk 0:00:02]} 42. Qxe6 {[%clk 0:01:09.4]} 42... b3 {[%clk 0:00:02.8]} 43.
Qc4+ {[%clk 0:01:08.7]} 43... Qb5 {[%clk 0:00:02.8]} 44. Qc7 {[%clk 0:01:01.1]}
44... Rd7 {[%clk 0:00:02]} 45. Qc8+ {[%clk 0:01:00.8]} 45... Kb6 {[%clk
0:00:02.5]} 46. Rb1 {[%clk 0:00:49.2]} 46... a4 {[%clk 0:00:02.9]} 47. h3 {[%clk
0:00:40.6]} 47... a3 {[%clk 0:00:03]} 48. Rxb3 {[%clk 0:00:39.9]} 1-0

[Event "*** Titled Tuesday Blitz"]
[Site "Chess.com"]
[Date "2020.11.10"]
[Round "9"]
[White "zivicd"]
[Black "Zarikovs1999"]
[Result "0-1"]
[WhiteElo "2242"]
[BlackElo "2376"]
[TimeControl "180+1"]
[EndTime "11:52:09 PST"]
[Termination "Zarikovs1999 won by checkmate"]

1. e4 {[%clk 0:03:00.9]} 1... Nc6 {[%clk 0:02:54.3]} 2. Nf3 {[%clk 0:02:59.9]}
2... d6 {[%clk 0:02:48]} 3. h3 {[%clk 0:02:59.7]} 3... g6 {[%clk 0:02:41.8]} 4.
d4 {[%clk 0:02:58.9]} 4... Bg7 {[%clk 0:02:40.2]} 5. c3 {[%clk 0:02:58.9]} 5...
e5 {[%clk 0:02:39.1]} 6. Bg5 {[%clk 0:02:36.7]} 6... Nge7 {[%clk 0:02:34.1]} 7.
d5 {[%clk 0:02:25.3]} 7... Nb8 {[%clk 0:02:33.8]} 8. Qd2 {[%clk 0:02:16.2]} 8...
h6 {[%clk 0:02:31.5]} 9. Be3 {[%clk 0:02:16.4]} 9... Nd7 {[%clk 0:02:28.9]} 10.
g4 {[%clk 0:02:16.1]} 10... a5 {[%clk 0:02:20.4]} 11. Na3 {[%clk 0:02:02.7]}
11... g5 {[%clk 0:01:58.5]} 12. Ng1 {[%clk 0:01:55.4]} 12... Ng6 {[%clk
0:01:57.1]} 13. O-O-O {[%clk 0:01:45.3]} 13... Nf4 {[%clk 0:01:55.7]} 14. Ne2
{[%clk 0:01:41.9]} 14... Nf8 {[%clk 0:01:37.1]} 15. Ng3 {[%clk 0:01:39]} 15...
N8g6 {[%clk 0:01:37.1]} 16. Bb5+ {[%clk 0:01:33.3]} 16... Bd7 {[%clk 0:01:37]}
17. Nf5 {[%clk 0:01:30.4]} 17... Bf6 {[%clk 0:01:34]} 18. Kb1 {[%clk 0:01:14.4]}
18... Kf8 {[%clk 0:01:26.9]} 19. Qc2 {[%clk 0:00:57.4]} 19... Bxb5 {[%clk
0:01:25.6]} 20. Nxb5 {[%clk 0:00:56.9]} 20... Qd7 {[%clk 0:01:26.5]} 21. c4
{[%clk 0:00:51.3]} 21... b6 {[%clk 0:01:26]} 22. a4 {[%clk 0:00:48.4]} 22... h5
{[%clk 0:01:20]} 23. f3 {[%clk 0:00:37.2]} 23... Ne7 {[%clk 0:01:18.2]} 24. Bf2
{[%clk 0:00:30]} 24... Nxf5 {[%clk 0:01:08.2]} 25. exf5 {[%clk 0:00:29.3]} 25...
Kg7 {[%clk 0:01:07.3]} 26. Nc3 {[%clk 0:00:29.2]} 26... hxg4 {[%clk 0:01:08.2]}
27. hxg4 {[%clk 0:00:28.1]} 27... Rxh1 {[%clk 0:01:09.1]} 28. Rxh1 {[%clk
0:00:27.6]} 28... Rh8 {[%clk 0:01:10]} 29. Qd1 {[%clk 0:00:25.9]} 29... Rh3
{[%clk 0:01:07.5]} 30. Rxh3 {[%clk 0:00:21.7]} 30... Nxh3 {[%clk 0:01:08.4]} 31.
Qf1 {[%clk 0:00:21.3]} 31... Nf4 {[%clk 0:01:03.3]} 32. b3 {[%clk 0:00:19.6]}
32... Qe8 {[%clk 0:00:57.9]} 33. Qh1 {[%clk 0:00:18.6]} 33... Nd3 {[%clk
0:00:55.1]} 34. Bg3 {[%clk 0:00:16.6]} 34... c6 {[%clk 0:00:41.7]} 35. dxc6
{[%clk 0:00:13]} 35... Qxc6 {[%clk 0:00:42.6]} 36. Nd5 {[%clk 0:00:12.3]} 36...
Qc5 {[%clk 0:00:33.2]} 37. Nxf6 {[%clk 0:00:12.1]} 37... Kxf6 {[%clk 0:00:34.1]}
38. Qh6+ {[%clk 0:00:10.2]} 38... Ke7 {[%clk 0:00:34.6]} 39. Qxg5+ {[%clk
0:00:10.3]} 39... Kd7 {[%clk 0:00:35.2]} 40. Qf6 {[%clk 0:00:08.5]} 40... Qg1+
{[%clk 0:00:29]} 41. Kc2 {[%clk 0:00:07.5]} 41... Nb4+ {[%clk 0:00:27.1]} 42.
Kb2 {[%clk 0:00:03.2]} 42... Qg2+ {[%clk 0:00:27.2]} 43. Kb1 {[%clk 0:00:01.2]}
43... Qc2+ {[%clk 0:00:26.7]} 44. Ka1 {[%clk 0:00:01.3]} 44... Qa2# {[%clk
0:00:27.6]} 0-1

[Event "*** Titled Tuesday Blitz"]
[Site "Chess.com"]
[Date "2020.11.10"]
[Round "9"]
[White "ecwinslow"]
[Black "tteshan"]
[Result "0-1"]
[WhiteElo "2233"]
[BlackElo "2366"]
[TimeControl "180+1"]
[EndTime "11:52:10 PST"]
[Termination "tteshan won on time"]

1. e4 {[%clk 0:02:55.5]} 1... c5 {[%clk 0:02:59.8]} 2. Nf3 {[%clk 0:02:49.6]}
2... Nc6 {[%clk 0:03:00.2]} 3. d4 {[%clk 0:02:49.6]} 3... cxd4 {[%clk
0:03:00.9]} 4. Nxd4 {[%clk 0:02:49.8]} 4... e6 {[%clk 0:03:01.5]} 5. Nc3 {[%clk
0:02:47.2]} 5... Qc7 {[%clk 0:03:01.2]} 6. Be3 {[%clk 0:02:44.9]} 6... Nf6
{[%clk 0:02:59.1]} 7. f4 {[%clk 0:02:39.2]} 7... d6 {[%clk 0:02:53.5]} 8. Be2
{[%clk 0:02:23.3]} 8... a6 {[%clk 0:02:52.2]} 9. O-O {[%clk 0:02:20.7]} 9... Be7
{[%clk 0:02:51.5]} 10. Qe1 {[%clk 0:02:13.8]} 10... O-O {[%clk 0:02:50.7]} 11.
Qg3 {[%clk 0:02:08.8]} 11... b5 {[%clk 0:02:47.9]} 12. a3 {[%clk 0:02:04.8]}
12... Bb7 {[%clk 0:02:47.7]} 13. Rad1 {[%clk 0:01:42.1]} 13... Rfe8 {[%clk
0:02:47.5]} 14. e5 {[%clk 0:01:36.7]} 14... dxe5 {[%clk 0:02:45.4]} 15. fxe5
{[%clk 0:01:35.9]} 15... Nd7 {[%clk 0:02:31.3]} 16. Bd3 {[%clk 0:01:00.8]} 16...
Ncxe5 {[%clk 0:02:16.8]} 17. Bxh7+ {[%clk 0:00:37.8]} 17... Kxh7 {[%clk
0:02:16.1]} 18. Rxf7 {[%clk 0:00:36.4]} 18... Bf6 {[%clk 0:02:01.6]} 19. Nxe6
{[%clk 0:00:28.3]} 19... Rxe6 {[%clk 0:01:44.4]} 20. Qh3+ {[%clk 0:00:24.9]}
20... Kg8 {[%clk 0:01:43.1]} 21. Qxe6 {[%clk 0:00:20.3]} 21... Nxf7 {[%clk
0:00:29.4]} 22. Rxd7 {[%clk 0:00:17.7]} 22... Qc4 {[%clk 0:00:25.1]} 23. Qxc4
{[%clk 0:00:17.4]} 23... bxc4 {[%clk 0:00:25.5]} 24. Rxb7 {[%clk 0:00:17.4]}
24... Re8 {[%clk 0:00:21.7]} 25. Kf2 {[%clk 0:00:16.3]} 25... Ne5 {[%clk
0:00:21.5]} 26. h3 {[%clk 0:00:14.9]} 26... Nc6 {[%clk 0:00:16.2]} 27. Nd5
{[%clk 0:00:12.8]} 27... Bh4+ {[%clk 0:00:15]} 28. g3 {[%clk 0:00:11.9]} 28...
Bd8 {[%clk 0:00:13.2]} 29. h4 {[%clk 0:00:07]} 29... Rf8+ {[%clk 0:00:10.1]} 30.
Kg2 {[%clk 0:00:05.9]} 30... Re8 {[%clk 0:00:09.4]} 31. Bf4 {[%clk 0:00:04.9]}
31... Re2+ {[%clk 0:00:08.6]} 32. Kf3 {[%clk 0:00:04.9]} 32... Rxc2 {[%clk
0:00:08.7]} 33. Rd7 {[%clk 0:00:02.8]} 33... Nd4+ {[%clk 0:00:08.7]} 34. Kg4
{[%clk 0:00:02.1]} 34... Ne6 {[%clk 0:00:04.4]} 35. Rd6 {[%clk 0:00:01.3]} 35...
Kf7 {[%clk 0:00:04.2]} 0-1

[Event "*** Titled Tuesday Blitz"]
[Site "Chess.com"]
[Date "2020.11.10"]
[Round "9"]
[White "dropstoneDP"]
[Black "RaunakSadhwani2005"]
[Result "0-1"]
[WhiteElo "2942"]
[BlackElo "3008"]
[TimeControl "180+1"]
[EndTime "11:52:11 PST"]
[Termination "RaunakSadhwani2005 won by resignation"]

1. e4 {[%clk 0:03:00.9]} 1... c6 {[%clk 0:02:59.7]} 2. d4 {[%clk 0:03:01]} 2...
d5 {[%clk 0:02:59]} 3. e5 {[%clk 0:03:01.7]} 3... Bf5 {[%clk 0:02:56.8]} 4. c4
{[%clk 0:03:02.1]} 4... e6 {[%clk 0:02:54.9]} 5. Nc3 {[%clk 0:03:02.7]} 5... Nd7
{[%clk 0:02:52.7]} 6. cxd5 {[%clk 0:03:02]} 6... cxd5 {[%clk 0:02:50.9]} 7. Bd3
{[%clk 0:03:02.6]} 7... Ne7 {[%clk 0:02:46.4]} 8. Nge2 {[%clk 0:03:02.2]} 8...
Bxd3 {[%clk 0:02:44]} 9. Qxd3 {[%clk 0:03:03.1]} 9... Nc6 {[%clk 0:02:44.9]} 10.
O-O {[%clk 0:03:01.9]} 10... Be7 {[%clk 0:02:42.1]} 11. Qg3 {[%clk 0:02:59.3]}
11... g6 {[%clk 0:02:34.2]} 12. Bh6 {[%clk 0:02:48.5]} 12... Bf8 {[%clk
0:02:29.8]} 13. Bxf8 {[%clk 0:02:45.9]} 13... Kxf8 {[%clk 0:02:25.8]} 14. f4
{[%clk 0:02:38.8]} 14... Qb6 {[%clk 0:02:19.9]} 15. Qe3 {[%clk 0:02:35.5]} 15...
h5 {[%clk 0:02:19.9]} 16. Rab1 {[%clk 0:02:30.4]} 16... a5 {[%clk 0:02:14.9]}
17. h3 {[%clk 0:02:17.6]} 17... h4 {[%clk 0:02:09.7]} 18. Kh2 {[%clk 0:02:17.3]}
18... Kg7 {[%clk 0:02:07.7]} 19. f5 {[%clk 0:02:13]} 19... exf5 {[%clk
0:02:01.3]} 20. Nxd5 {[%clk 0:02:12]} 20... Qd8 {[%clk 0:02:01.1]} 21. Ndf4
{[%clk 0:01:40.7]} 21... Nb6 {[%clk 0:01:53.6]} 22. Rbd1 {[%clk 0:01:34.5]}
22... Nd5 {[%clk 0:01:39]} 23. Nxd5 {[%clk 0:01:33.5]} 23... Qxd5 {[%clk
0:01:39.9]} 24. Nc3 {[%clk 0:01:27.5]} 24... Qe6 {[%clk 0:01:35.5]} 25. Rfe1
{[%clk 0:01:25.5]} 25... Rae8 {[%clk 0:01:30.7]} 26. Qf4 {[%clk 0:01:18]} 26...
Qc4 {[%clk 0:01:23.2]} 27. Qg5 {[%clk 0:00:58.2]} 27... Rh5 {[%clk 0:00:58.8]}
28. Qf6+ {[%clk 0:00:50]} 28... Kg8 {[%clk 0:00:57.3]} 29. d5 {[%clk 0:00:34.7]}
29... Nxe5 {[%clk 0:00:56.2]} 30. d6 {[%clk 0:00:34.2]} 30... Nf3+ {[%clk
0:00:48.4]} 31. gxf3 {[%clk 0:00:16]} 31... Qf4+ {[%clk 0:00:48.2]} 32. Kg2
{[%clk 0:00:09.3]} 32... Qg3+ {[%clk 0:00:47.9]} 33. Kf1 {[%clk 0:00:09.7]}
33... Qxh3+ {[%clk 0:00:44.6]} 34. Kg1 {[%clk 0:00:08.1]} 34... Qg3+ {[%clk
0:00:45.5]} 35. Kf1 {[%clk 0:00:08.4]} 35... Qxf3+ {[%clk 0:00:42.4]} 36. Kg1
{[%clk 0:00:09]} 36... Qg3+ {[%clk 0:00:39.1]} 37. Kf1 {[%clk 0:00:09.6]} 37...
Qf4+ {[%clk 0:00:36.6]} 38. Kg2 {[%clk 0:00:04.9]} 38... Rg5+ {[%clk 0:00:36]}
39. Qxg5 {[%clk 0:00:05.5]} 39... Qxg5+ {[%clk 0:00:36.9]} 40. Kh1 {[%clk
0:00:06.1]} 40... Rxe1+ {[%clk 0:00:30.6]} 41. Rxe1 {[%clk 0:00:07]} 41... h3
{[%clk 0:00:27.7]} 42. Rg1 {[%clk 0:00:03.6]} 42... Qd2 {[%clk 0:00:24.9]} 0-1

[Event "*** Titled Tuesday Blitz"]
[Site "Chess.com"]
[Date "2020.11.10"]
[Round "9"]
[White "Fandorine"]
[Black "Chopper1905"]
[Result "0-1"]
[WhiteElo "2831"]
[BlackElo "2947"]
[TimeControl "180+1"]
[EndTime "11:52:11 PST"]
[Termination "Chopper1905 won by resignation"]

1. e4 {[%clk 0:03:00.9]} 1... e5 {[%clk 0:03:00.5]} 2. Bc4 {[%clk 0:03:00.6]}
2... Nf6 {[%clk 0:03:00.1]} 3. d3 {[%clk 0:03:01.2]} 3... c6 {[%clk 0:03:00.6]}
4. Nf3 {[%clk 0:03:01.4]} 4... d5 {[%clk 0:03:01.1]} 5. Bb3 {[%clk 0:03:02]}
5... a5 {[%clk 0:03:01.4]} 6. a3 {[%clk 0:03:00.2]} 6... a4 {[%clk 0:02:57.3]}
7. Ba2 {[%clk 0:03:00.2]} 7... Bd6 {[%clk 0:02:56.4]} 8. Nc3 {[%clk 0:02:58.1]}
8... Be6 {[%clk 0:02:45]} 9. Ng5 {[%clk 0:02:57.3]} 9... Bg4 {[%clk 0:02:45]}
10. f3 {[%clk 0:02:50]} 10... Bc8 {[%clk 0:02:43.9]} 11. f4 {[%clk 0:02:31.4]}
11... exf4 {[%clk 0:02:36.7]} 12. O-O {[%clk 0:02:26.3]} 12... O-O {[%clk
0:02:07.7]} 13. Bxf4 {[%clk 0:01:40.8]} 13... Bxf4 {[%clk 0:02:06.5]} 14. Rxf4
{[%clk 0:01:41.7]} 14... h6 {[%clk 0:02:03]} 15. Nf3 {[%clk 0:01:33.2]} 15...
Qb6+ {[%clk 0:02:02.9]} 16. Kh1 {[%clk 0:01:33.3]} 16... Ng4 {[%clk 0:01:53.4]}
17. Ng1 {[%clk 0:00:44.4]} 17... Qxb2 {[%clk 0:01:24.5]} 18. Qe1 {[%clk
0:00:44.8]} 18... Qxc2 {[%clk 0:00:54.6]} 19. exd5 {[%clk 0:00:33.1]} 19... Qxd3
{[%clk 0:00:34.7]} 20. h3 {[%clk 0:00:28.3]} 20... Qe3 {[%clk 0:00:26.2]} 21.
Rf3 {[%clk 0:00:12.1]} 21... Qxe1 {[%clk 0:00:23.8]} 22. Rxe1 {[%clk 0:00:13]}
22... Nf6 {[%clk 0:00:24.4]} 23. d6 {[%clk 0:00:13.9]} 23... Be6 {[%clk
0:00:20.8]} 24. Bxe6 {[%clk 0:00:11.9]} 24... fxe6 {[%clk 0:00:21.7]} 25. Rxe6
{[%clk 0:00:12.5]} 25... Nbd7 {[%clk 0:00:22.3]} 26. Nge2 {[%clk 0:00:10.3]}
26... Rae8 {[%clk 0:00:22.5]} 27. Nd4 {[%clk 0:00:07.7]} 27... Rxe6 {[%clk
0:00:22.4]} 28. Nxe6 {[%clk 0:00:08.6]} 28... Re8 {[%clk 0:00:23.1]} 29. Nd4
{[%clk 0:00:05.9]} 29... Re1+ {[%clk 0:00:22.6]} 30. Kh2 {[%clk 0:00:06]} 30...
Ne5 {[%clk 0:00:20.4]} 31. Rg3 {[%clk 0:00:06.3]} 31... Kf7 {[%clk 0:00:18.4]}
32. Nxa4 {[%clk 0:00:05.7]} 32... Re4 {[%clk 0:00:18.2]} 33. Nf5 {[%clk
0:00:02.5]} 33... Rxa4 {[%clk 0:00:18.3]} 34. Rxg7+ {[%clk 0:00:03.1]} 34... Ke6
{[%clk 0:00:18.9]} 35. Nxh6 {[%clk 0:00:03.8]} 35... Kxd6 {[%clk 0:00:18.9]} 36.
g4 {[%clk 0:00:04.3]} 36... Rxa3 {[%clk 0:00:18.6]} 37. Nf5+ {[%clk 0:00:04.7]}
37... Kc5 {[%clk 0:00:18.1]} 38. g5 {[%clk 0:00:03.3]} 38... Ra2+ {[%clk
0:00:18]} 39. Kg3 {[%clk 0:00:03.5]} 39... Nh5+ {[%clk 0:00:17.3]} 0-1

[Event "*** Titled Tuesday Blitz"]
[Site "Chess.com"]
[Date "2020.11.10"]
[Round "9"]
[White "Grandelicious"]
[Black "GOGIEFF"]
[Result "0-1"]
[WhiteElo "2805"]
[BlackElo "2906"]
[TimeControl "180+1"]
[EndTime "11:52:11 PST"]
[Termination "GOGIEFF won by resignation"]

1. Nf3 {[%clk 0:03:00.9]} 1... d5 {[%clk 0:02:58.8]} 2. g3 {[%clk 0:03:01.2]}
2... g6 {[%clk 0:02:58.9]} 3. c4 {[%clk 0:03:01.1]} 3... d4 {[%clk 0:02:58.5]}
4. b4 {[%clk 0:02:56.7]} 4... Bg7 {[%clk 0:02:57.6]} 5. d3 {[%clk 0:02:56]} 5...
e5 {[%clk 0:02:56.5]} 6. Bg2 {[%clk 0:02:54.5]} 6... Ne7 {[%clk 0:02:55.9]} 7.
O-O {[%clk 0:02:54.5]} 7... O-O {[%clk 0:02:54.6]} 8. a4 {[%clk 0:02:54.9]} 8...
a5 {[%clk 0:02:47.3]} 9. b5 {[%clk 0:02:52.8]} 9... c5 {[%clk 0:02:47.2]} 10.
Ra2 {[%clk 0:02:47.4]} 10... Ra7 {[%clk 0:02:42.1]} 11. e3 {[%clk 0:02:45.1]}
11... b6 {[%clk 0:02:41]} 12. exd4 {[%clk 0:02:45.5]} 12... exd4 {[%clk
0:02:40.2]} 13. Re2 {[%clk 0:02:41.5]} 13... Nd7 {[%clk 0:02:32]} 14. Rfe1
{[%clk 0:02:36.8]} 14... Nf5 {[%clk 0:02:30.8]} 15. Nbd2 {[%clk 0:02:25.3]}
15... Nd6 {[%clk 0:02:14.6]} 16. Ne4 {[%clk 0:02:04.8]} 16... Nxe4 {[%clk
0:02:14.5]} 17. Rxe4 {[%clk 0:02:05.7]} 17... Nf6 {[%clk 0:01:54.4]} 18. Bg5
{[%clk 0:02:00.6]} 18... h6 {[%clk 0:01:48.2]} 19. Bxf6 {[%clk 0:01:58.5]} 19...
Qxf6 {[%clk 0:01:45.1]} 20. Ne5 {[%clk 0:01:55]} 20... Bf5 {[%clk 0:01:39.3]}
21. Rf4 {[%clk 0:01:23.8]} 21... Re7 {[%clk 0:01:35.2]} 22. Nc6 {[%clk
0:01:11.1]} 22... Rxe1+ {[%clk 0:01:28.1]} 23. Qxe1 {[%clk 0:01:12]} 23... Kh7
{[%clk 0:01:20.7]} 24. Be4 {[%clk 0:00:54]} 24... Qe6 {[%clk 0:01:19.1]} 25. Qd1
{[%clk 0:00:44.7]} 25... Bh3 {[%clk 0:01:17.2]} 26. Bg2 {[%clk 0:00:43.5]} 26...
Bxg2 {[%clk 0:01:15.3]} 27. Kxg2 {[%clk 0:00:44.4]} 27... f5 {[%clk 0:01:15.7]}
28. g4 {[%clk 0:00:33.4]} 28... Qd6 {[%clk 0:01:05.2]} 29. Rf3 {[%clk
0:00:21.4]} 29... f4 {[%clk 0:01:05.4]} 30. Qe2 {[%clk 0:00:19.8]} 30... Qd7
{[%clk 0:01:02.7]} 31. h3 {[%clk 0:00:18]} 31... Re8 {[%clk 0:01:02.6]} 32. Qd1
{[%clk 0:00:17.8]} 32... g5 {[%clk 0:01:03]} 33. Kg1 {[%clk 0:00:18]} 33... Qe6
{[%clk 0:01:02.8]} 34. Kf1 {[%clk 0:00:18.3]} 34... Kg6 {[%clk 0:01:02.9]} 35.
Kg2 {[%clk 0:00:18.6]} 35... Qe2 {[%clk 0:00:58.1]} 36. Qxe2 {[%clk 0:00:10.8]}
36... Rxe2 {[%clk 0:00:59]} 37. h4 {[%clk 0:00:11.4]} 37... Ra2 {[%clk 0:00:58]}
38. hxg5 {[%clk 0:00:10.5]} 38... hxg5 {[%clk 0:00:57.4]} 39. Ne7+ {[%clk
0:00:10.1]} 39... Kf7 {[%clk 0:00:54.1]} 40. Nd5 {[%clk 0:00:11]} 40... Rxa4
{[%clk 0:00:52.9]} 41. Nxb6 {[%clk 0:00:11.4]} 41... Ra1 {[%clk 0:00:52.9]} 42.
Nd7 {[%clk 0:00:07.2]} 42... a4 {[%clk 0:00:51.8]} 43. b6 {[%clk 0:00:07.6]}
43... a3 {[%clk 0:00:52.2]} 44. Rh3 {[%clk 0:00:05.3]} 44... a2 {[%clk
0:00:51.4]} 45. b7 {[%clk 0:00:05.6]} 45... Rb1 {[%clk 0:00:51.6]} 46. Rh1
{[%clk 0:00:05.7]} 46... Rxh1 {[%clk 0:00:44]} 47. Kxh1 {[%clk 0:00:04.6]} 47...
a1=Q+ {[%clk 0:00:43.4]} 48. Kg2 {[%clk 0:00:05.2]} 48... f3+ {[%clk 0:00:43.2]}
49. Kg3 {[%clk 0:00:03.9]} 49... Qg1+ {[%clk 0:00:42.7]} 50. Kxf3 {[%clk
0:00:04.1]} 50... Qh1+ {[%clk 0:00:43]} 0-1

[Event "*** Titled Tuesday Blitz"]
[Site "Chess.com"]
[Date "2020.11.10"]
[Round "9"]
[White "Goryachkina"]
[Black "rasmussvane"]
[Result "1/2-1/2"]
[WhiteElo "2592"]
[BlackElo "2856"]
[TimeControl "180+1"]
[EndTime "11:52:13 PST"]
[Termination "Game drawn by repetition"]

1. e4 {[%clk 0:02:59.9]} 1... c6 {[%clk 0:03:00.1]} 2. d4 {[%clk 0:02:59.6]}
2... d5 {[%clk 0:02:59.7]} 3. exd5 {[%clk 0:02:59.9]} 3... cxd5 {[%clk
0:03:00.6]} 4. Bd3 {[%clk 0:02:59.9]} 4... Nf6 {[%clk 0:03:01.1]} 5. h3 {[%clk
0:02:58.5]} 5... Nc6 {[%clk 0:03:01.1]} 6. c3 {[%clk 0:02:58.6]} 6... g6 {[%clk
0:02:58.7]} 7. Nf3 {[%clk 0:02:57.2]} 7... Bf5 {[%clk 0:02:59.1]} 8. Be2 {[%clk
0:02:56.5]} 8... Bg7 {[%clk 0:02:59.2]} 9. Bf4 {[%clk 0:02:53.4]} 9... O-O
{[%clk 0:02:59.3]} 10. O-O {[%clk 0:02:53.1]} 10... Nd7 {[%clk 0:02:45.4]} 11.
Nbd2 {[%clk 0:02:49.9]} 11... e5 {[%clk 0:02:45.6]} 12. dxe5 {[%clk 0:02:49]}
12... Ndxe5 {[%clk 0:02:46.5]} 13. Nxe5 {[%clk 0:02:48.6]} 13... Nxe5 {[%clk
0:02:47.4]} 14. Bxe5 {[%clk 0:02:38.3]} 14... Bxe5 {[%clk 0:02:47.1]} 15. Nf3
{[%clk 0:02:38.2]} 15... Bg7 {[%clk 0:02:47.1]} 16. Nd4 {[%clk 0:02:37.3]} 16...
Be6 {[%clk 0:02:46.2]} 17. Qd2 {[%clk 0:02:35.1]} 17... Qb6 {[%clk 0:02:43.8]}
18. Rad1 {[%clk 0:02:22.9]} 18... Bxd4 {[%clk 0:02:40.6]} 19. cxd4 {[%clk
0:02:22.7]} 19... Rac8 {[%clk 0:02:40.1]} 20. Rc1 {[%clk 0:02:20.1]} 20... a5
{[%clk 0:02:28.1]} 21. Bf3 {[%clk 0:02:16.8]} 21... Rfd8 {[%clk 0:02:24.1]} 22.
Rfe1 {[%clk 0:02:12.3]} 22... Rc4 {[%clk 0:02:23.6]} 23. Rxc4 {[%clk 0:01:55.3]}
23... dxc4 {[%clk 0:02:24.5]} 24. d5 {[%clk 0:01:55]} 24... Bf5 {[%clk
0:01:31.5]} 25. Qg5 {[%clk 0:01:48.8]} 25... Kg7 {[%clk 0:01:18.4]} 26. h4
{[%clk 0:01:29.1]} 26... h6 {[%clk 0:01:12.9]} 27. Qd2 {[%clk 0:01:15.7]} 27...
Qf6 {[%clk 0:00:52.9]} 28. Qxa5 {[%clk 0:01:06.4]} 28... Qxh4 {[%clk 0:00:52.9]}
29. Qc3+ {[%clk 0:01:03.2]} 29... Qf6 {[%clk 0:00:52.1]} 30. Qxc4 {[%clk
0:00:58.6]} 30... Qxb2 {[%clk 0:00:52.1]} 31. a4 {[%clk 0:00:55.1]} 31... h5
{[%clk 0:00:48.2]} 32. a5 {[%clk 0:00:53.3]} 32... Qd2 {[%clk 0:00:44.3]} 33.
Rd1 {[%clk 0:00:42.4]} 33... Qxa5 {[%clk 0:00:42]} 34. d6 {[%clk 0:00:37.8]}
34... Qe5 {[%clk 0:00:39]} 35. Qb4 {[%clk 0:00:36]} 35... b5 {[%clk 0:00:27.1]}
36. Rd5 {[%clk 0:00:33.8]} 36... Qa1+ {[%clk 0:00:20.8]} 37. Kh2 {[%clk
0:00:33.9]} 37... Qa7 {[%clk 0:00:21]} 38. Qb2+ {[%clk 0:00:26.8]} 38... Kg8
{[%clk 0:00:20.5]} 39. Qf6 {[%clk 0:00:23.7]} 39... Qd7 {[%clk 0:00:17.7]} 40.
Rxf5 {[%clk 0:00:17.7]} 40... gxf5 {[%clk 0:00:08]} 41. Qg5+ {[%clk 0:00:17.8]}
41... Kf8 {[%clk 0:00:08.5]} 42. Qh6+ {[%clk 0:00:17.1]} 42... Kg8 {[%clk
0:00:09.1]} 43. Qg5+ {[%clk 0:00:15.5]} 43... Kf8 {[%clk 0:00:09.3]} 44. Qh6+
{[%clk 0:00:15.8]} 44... Kg8 {[%clk 0:00:09.8]} 45. Qg5+ {[%clk 0:00:16.2]}
1/2-1/2